bitfinex/quotes_ETHUSD_20241109
["timestamp","ask_amount","ask_price","bid_price","bid_amount"]
[1731134465789,0.01,3035.7,3035.5,1.05001677]
[1731134466163,0.01,3035.7,3035.6,0.0543408]
[1731134467962,0.72786365,3035.9,3035.6,0.0543408]
[1731134470590,0.72786365,3035.9,3035.5,1.05001677]
[1731134473182,0.90008771,3035.9,3035.5,1.05001677]
[1731134476504,0.2379369,3035.9,3035.5,1.05001677]
[1731134476719,0.02,3035.6,3035.5,1.05001677]
[1731134476875,0.32648414,3035.6,3035.5,1.05001677]
[1731134477080,0.32648414,3035.6,3035.5,0.26660581]
[1731134477517,0.32648414,3035.6,3035.5,0.31768646]
[1731134478212,0.39219698,3035.6,3035.5,0.31768646]
[1731134478516,0.39219698,3035.6,3035.5,0.26660581]
[1731134479016,0.39219698,3035.6,3035.5,0.31768646]
[1731134479901,0.01,3035.0,3033.6,0.17875562]
[1731134480106,0.01,3034.8,3033.7,0.39612556]
[1731134480287,0.68558804,3034.5,3033.6,0.17875562]
[1731134480492,0.63260845,3034.4,3033.5,0.7825]
[1731134480719,0.06571284,3034.4,3033.5,0.7825]
[1731134480890,0.56645005,3034.3,3032.4,0.7825]
[1731134481110,0.06571284,3034.2,3032.4,0.7825]
[1731134481392,0.68558804,3034.3,3032.4,0.7825]
[1731134481590,2.34690898,3034.2,3032.4,0.7825]
[1731134481790,0.56625874,3034.1,3032.4,0.7825]
[1731134482097,0.6314844,3034.0,3032.4,0.7825]
[1731134482305,0.76130088,3034.0,3032.4,0.7825]
[1731134482610,0.07571284,3034.0,3032.4,0.7825]
[1731134483321,0.06571284,3034.0,3032.5,0.06594254]
[1731134483643,1.37117608,3034.5,3032.5,0.06594254]
[1731134483644,0.06571284,3034.1,3032.8,0.55]
[1731134483829,0.06571284,3034.1,3032.9,0.50238367]
[1731134484001,0.06571284,3034.3,3032.9,0.50238367]
[1731134484202,0.06571284,3034.3,3032.9,0.06593367]
[1731134484402,0.06571284,3034.3,3033.0,3.0]
[1731134484616,0.06571284,3034.3,3033.1,0.06592978]
[1731134484813,0.68558804,3034.6,3033.1,0.06592978]
[1731134484814,0.06571284,3034.5,3033.1,0.06592978]
[1731134485037,0.06571284,3034.5,3033.1,0.55]
[1731134485324,0.06571284,3034.5,3033.2,0.40354917]
[1731134485711,0.07571284,3034.5,3033.2,0.40354917]
[1731134486051,0.07571284,3034.4,3033.2,0.40354917]
[1731134486190,0.07571284,3034.4,3033.2,0.04854917]
[1731134486392,0.07571284,3034.4,3032.8,3.55]
[1731134486735,0.07571284,3034.4,3033.3,0.04853843]
[1731134486930,0.07571284,3034.4,3032.8,0.55]
[1731134487103,0.06571284,3034.4,3033.4,0.04852443]
[1731134487299,0.06571284,3034.4,3032.8,3.67411256]
[1731134487528,0.07571284,3034.4,3032.9,0.44886126]
[1731134487707,0.06571284,3034.4,3032.9,0.04858141]
[1731134488019,0.07571284,3034.4,3032.9,0.04858141]
[1731134489131,0.06571284,3034.4,3032.9,0.04858141]
[1731134489291,0.01,3034.3,3032.9,0.04858141]
[1731134489796,0.01,3034.0,3032.7,0.93820996]
[1731134489995,0.06571284,3034.0,3033.0,0.04857066]
[1731134490195,0.06571284,3034.0,3032.8,0.393821]
[1731134490416,0.06571284,3034.0,3033.1,0.04856643]
[1731134490629,0.06571284,3034.0,3032.7,0.93820996]
[1731134490795,0.06571284,3034.0,3033.2,0.04854917]
[1731134490992,0.06571284,3034.0,3032.7,0.8145]
[1731134491212,0.06571284,3034.0,3033.3,0.04853843]
[1731134491410,0.06571284,3034.0,3032.7,0.8145]
[1731134491713,0.06571284,3034.0,3033.4,0.0485342]
[1731134491914,0.06571284,3034.0,3032.7,0.8145]
[1731134492432,0.06571284,3034.0,3032.8,0.04873799]
[1731134494106,0.06571284,3033.9,3032.8,0.04873799]
[1731134494345,0.02,3034.3,3032.8,0.04873799]
[1731134494541,0.08571284,3034.3,3032.8,0.04873799]
[1731134494708,0.08571284,3034.3,3032.7,0.8145]
[1731134494912,0.08571284,3034.3,3032.8,0.39384595]
[1731134495148,0.08571284,3034.3,3032.8,0.04710334]
[1731134495450,0.08571284,3034.3,3032.7,0.8145]
[1731134495651,0.08571284,3034.3,3032.9,0.04709585]
[1731134495826,0.08571284,3034.3,3032.7,0.8145]
[1731134495827,0.08571284,3034.3,3032.8,0.04711311]
[1731134496155,0.08571284,3034.3,3033.0,0.04708511]
[1731134496358,0.08571284,3034.3,3032.9,0.04709585]
[1731134496529,0.08571284,3034.3,3033.1,0.04708088]
[1731134496729,0.08571284,3034.3,3032.7,0.8145]
[1731134497520,0.08571284,3034.3,3032.8,0.39384595]
[1731134497725,0.08571284,3034.3,3032.8,0.44095255]
[1731134498039,0.08571284,3034.3,3032.7,0.8145]
[1731134498366,0.08571284,3034.3,3032.9,0.04709911]
[1731134498690,0.08571284,3034.3,3032.7,0.8145]
[1731134499348,0.02,3034.1,3032.7,0.8145]
[1731134499544,0.02,3034.1,3032.4,3.8145]
[1731134499721,0.06571284,3034.0,3032.8,0.04710986]
[1731134499919,0.06571284,3034.0,3032.5,0.0472062]
[1731134500141,0.06571284,3034.0,3032.4,0.8145]
[1731134500340,0.06571284,3034.0,3032.4,0.93975249]
[1731134500849,0.06571284,3034.0,3032.5,0.0472062]
[1731134501021,0.06571284,3034.0,3032.5,0.11315085]
[1731134501416,0.06571284,3034.0,3032.5,0.0472062]
[1731134501742,0.06571284,3034.2,3032.5,0.55]
[1731134502250,0.01,3034.1,3032.4,3.93975249]
[1731134502481,0.06571284,3034.0,3032.6,0.04721977]
[1731134502768,0.06571284,3034.0,3032.4,3.93975249]
[1731134503173,0.06571284,3034.0,3032.5,0.04723052]
[1731134504073,0.06571284,3034.1,3032.6,0.55]
[1731134504291,0.06571284,3034.1,3032.6,0.59721977]
[1731134505559,0.06571284,3034.2,3032.6,0.59721977]
[1731134507787,0.06571284,3034.2,3032.5,0.55]
[1731134508144,0.06571284,3034.3,3033.1,1.3747]
[1731134508451,1.04831157,3034.9,3033.2,0.48469058]
[1731134508452,0.06571284,3034.7,3033.2,0.48469058]
[1731134509073,0.06571284,3034.7,3033.2,0.04722058]
[1731134509282,0.07571284,3034.9,3033.3,0.06592555]
[1731134509484,0.07571284,3034.9,3033.3,0.1130956]
[1731134509774,0.08571284,3034.9,3033.3,0.1130956]
[1731134510002,0.06571284,3034.9,3033.4,0.31130956]
[1731134510301,0.06571284,3035.0,3033.5,0.89062558]
[1731134510805,0.06571284,3035.0,3033.6,0.04708687]
[1731134511581,0.01,3034.7,3033.6,0.04708687]
[1731134511772,0.01,3034.7,3033.0,0.8247]
[1731134512106,0.76130088,3035.0,3033.3,3.0]
[1731134512309,0.07571284,3035.0,3033.4,0.3]
[1731134512467,0.07571284,3035.0,3033.4,0.04564424]
[1731134512672,0.56403715,3034.9,3033.4,0.04564424]
[1731134512909,0.06571284,3034.8,3033.4,0.04564424]
[1731134513268,0.06571284,3034.8,3033.3,3.0]
[1731134513467,0.06571284,3034.8,3033.5,0.0456357]
[1731134513729,0.06571284,3034.8,3033.5,0.30456357]
[1731134513909,0.06571284,3034.9,3034.0,2.74211853]
[1731134514291,0.06571284,3034.9,3034.1,0.04557126]
[1731134515270,0.06571284,3035.1,3034.1,0.04557126]
[1731134516568,0.75130088,3035.1,3034.3,2.74211853]
[1731134516804,0.75130088,3035.1,3034.4,0.04552468]
[1731134517019,0.06571284,3035.1,3034.4,0.04552468]
[1731134517174,0.75130088,3035.1,3034.4,0.04552468]
[1731134517576,1.41331426,3035.0,3034.4,0.04552468]
[1731134517820,0.06571284,3034.9,3034.3,2.74211853]
[1731134517975,0.06571284,3034.9,3034.5,0.04550091]
[1731134518317,0.06571284,3034.9,3034.3,2.74211853]
[1731134519110,0.06571284,3034.9,3034.0,2.74211853]
[1731134519520,0.06571284,3034.9,3034.1,0.04552065]
[1731134519681,0.56627383,3034.8,3034.1,0.04552065]
[1731134520006,0.06571284,3034.7,3034.1,0.04552065]
[1731134521280,0.56657844,3034.6,3034.1,0.04552065]
[1731134521472,2.16818773,3034.5,3033.7,2.74211853]
[1731134521720,0.56657844,3034.4,3034.2,0.04551653]
[1731134521881,0.06571284,3034.3,3033.7,2.74211853]
[1731134522400,0.06571284,3034.4,3034.0,2.74211853]
[1731134522925,0.06571284,3034.6,3034.3,2.74211853]
[1731134523337,0.06571284,3034.8,3034.3,2.74211853]
[1731134524336,0.06571284,3034.9,3034.6,2.74211853]
[1731134524691,0.06571284,3035.1,3034.6,2.74211853]
[1731134524925,0.06571284,3035.1,3034.9,2.74211853]
[1731134525127,0.06571284,3035.3,3034.9,2.74211853]
[1731134526128,0.06571284,3035.4,3034.9,2.74211853]
[1731134527036,0.06571284,3035.5,3034.9,2.74211853]
[1731134527706,0.06571284,3035.5,3033.7,0.27421185]
[1731134527707,0.01,3035.4,3034.3,2.74211853]
[1731134527914,2.16652713,3035.3,3034.3,2.74211853]
[1731134528236,2.10081429,3035.2,3034.3,2.74211853]
[1731134528389,0.63179563,3035.1,3034.1,0.12547582]
[1731134528593,0.63179563,3035.1,3034.2,2.74211853]
[1731134528594,0.06571284,3035.1,3034.2,2.74211853]
[1731134529008,0.06571284,3035.1,3034.3,0.0453512]
[1731134530839,0.06571284,3035.2,3034.3,0.0453512]
[1731134531025,0.2381028,3035.2,3034.3,0.0453512]
[1731134531198,0.56616538,3035.1,3034.3,0.0453512]
[1731134531536,0.06571284,3035.0,3034.3,0.0453512]
[1731134531735,0.06571284,3035.0,3034.2,2.74211853]
[1731134532092,0.06571284,3035.0,3034.3,0.04534268]
[1731134532298,0.06571284,3035.1,3034.2,2.74211853]
[1731134532499,0.26091308,3035.1,3034.5,2.74211853]
[1731134532796,0.06571284,3035.1,3034.5,2.74211853]
[1731134533434,0.06571284,3035.2,3034.5,2.74211853]
[1731134533739,0.06571284,3035.2,3034.8,2.74211853]
[1731134533901,0.06571284,3035.4,3034.8,2.74211853]
[1731134534103,0.25489893,3035.4,3034.9,0.04527829]
[1731134534798,0.06571284,3035.4,3034.8,2.74211853]
[1731134535333,0.75130088,3035.5,3034.9,0.04517029]
[1731134535505,0.06571284,3035.5,3034.9,0.04517029]
[1731134535710,0.06571284,3035.5,3035.1,2.74211853]
[1731134536106,0.06571284,3035.6,3035.2,0.0451381]
[1731134536315,0.06571284,3035.6,3034.4,0.55]
[1731134536624,0.06571284,3035.6,3035.0,2.74211853]
[1731134537033,0.06571284,3035.6,3035.1,0.04515308]
[1731134537219,0.06571284,3035.7,3035.1,0.04515308]
[1731134538312,0.06571284,3035.8,3035.1,0.04515308]
[1731134540228,0.06571284,3035.9,3035.1,0.04515308]
[1731134540432,0.24367409,3035.9,3035.3,2.74211853]
[1731134540631,0.06571284,3035.9,3035.4,0.0451209]
[1731134541363,0.06571284,3036.0,3035.4,0.0451209]
[1731134541727,0.06571284,3036.2,3035.4,0.0451209]
[1731134542076,0.06571284,3036.2,3035.9,2.74211853]
[1731134542231,0.06571284,3036.4,3035.9,2.74211853]
[1731134542573,0.06571284,3036.4,3036.2,2.74211853]
[1731134542725,0.06571284,3036.9,3036.2,2.74211853]
[1731134542931,0.06571284,3036.9,3036.3,0.04502863]
[1731134543735,0.06571284,3037.1,3036.3,0.04502863]
[1731134544531,0.06571284,3037.1,3036.5,2.74211853]
[1731134544726,0.06571284,3037.4,3036.5,2.74211853]
[1731134544953,0.06571284,3037.4,3036.6,0.04461977]
[1731134545327,0.56567232,3037.3,3036.6,0.04461977]
[1731134545532,0.06571284,3037.2,3036.2,2.74211853]
[1731134545727,0.06571284,3037.2,3036.7,0.04460905]
[1731134545959,0.06571284,3037.2,3036.3,0.04465193]
[1731134546132,0.06571284,3037.2,3036.8,0.04311137]
[1731134546459,0.06571284,3037.2,3036.2,2.74211853]
[1731134547242,0.06571284,3037.2,3036.3,0.04172792]
[1731134550268,0.06571284,3037.2,3036.2,2.74211853]
[1731134550476,0.01,3037.1,3036.2,2.74211853]
[1731134550642,0.06571284,3037.0,3036.4,0.04140989]
[1731134551144,0.06571284,3037.0,3036.2,2.74211853]
[1731134552059,0.06571284,3037.1,3036.2,3.01633038]
[1731134552259,0.06571284,3037.1,3036.5,2.74211853]
[1731134552761,0.06571284,3037.1,3036.6,0.04137869]
[1731134553288,0.68558804,3037.5,3036.6,0.04137869]
[1731134553289,0.07571284,3037.4,3036.6,0.04137869]
[1731134553596,0.08571284,3037.4,3036.0,0.8005]
[1731134553813,0.70558804,3037.2,3035.8,2.74211853]
[1731134554095,0.01,3036.7,3036.1,0.04140367]
[1731134554398,0.07571284,3036.7,3035.9,0.04142353]
[1731134554691,0.07571284,3036.7,3035.5,2.74211853]
[1731134554850,0.07571284,3036.7,3036.0,0.04140588]
[1731134555063,0.07571284,3036.7,3035.5,2.74211853]
[1731134555292,0.07571284,3036.7,3036.1,0.04139516]
[1731134555457,1.60877883,3036.7,3036.1,0.04139516]
[1731134555651,0.46187788,3036.6,3036.2,0.04143348]
[1731134555854,0.06571284,3036.5,3035.7,2.74211853]
[1731134556052,0.06571284,3036.5,3036.3,0.0414185]
[1731134556283,0.06571284,3036.5,3035.7,2.74211853]
[1731134556485,0.06571284,3036.5,3036.4,0.04140778]
[1731134556788,0.06571284,3036.6,3036.0,2.74211853]
[1731134556990,0.06571284,3036.6,3036.0,3.01633038]
[1731134557152,0.06571284,3036.6,3036.1,0.04144053]
[1731134557849,0.06571284,3036.8,3036.1,0.04144053]
[1731134558054,0.01,3036.7,3036.1,0.04144053]
[1731134558286,0.06571284,3036.6,3035.7,2.74211853]
[1731134558487,0.06571284,3036.6,3036.2,0.04143307]
[1731134558659,0.06571284,3036.6,3035.7,2.74211853]
[1731134559087,0.06571284,3036.6,3036.3,0.04142235]
[1731134559295,0.07571284,3036.7,3035.7,2.74211853]
[1731134559587,0.07571284,3036.7,3036.4,0.04141162]
[1731134559759,0.07571284,3036.7,3035.7,2.74211853]
[1731134560174,0.07571284,3036.7,3035.8,0.04147596]
[1731134560350,0.24567409,3036.7,3036.0,2.74211853]
[1731134560551,0.06571284,3036.7,3036.0,3.54261853]
[1731134560865,0.06571284,3036.8,3036.1,0.04152965]
[1731134561060,0.06571284,3036.8,3036.0,3.54261853]
[1731134561261,0.06571284,3036.8,3036.2,0.04151893]
[1731134561466,0.06571284,3036.8,3036.0,2.74211853]
[1731134561865,0.06571284,3036.8,3036.3,2.74211853]
[1731134562497,0.06571284,3036.9,3036.4,0.0415107]
[1731134562795,0.06571284,3036.9,3036.3,2.74211853]
[1731134563363,0.06571284,3037.0,3036.3,2.74211853]
[1731134565678,0.06571284,3037.1,3036.3,2.74211853]
[1731134566683,0.75130088,3037.1,3036.3,2.74211853]
[1731134566922,0.56566535,3037.0,3036.3,2.74211853]
[1731134567132,0.06571284,3036.9,3036.3,2.74211853]
[1731134568184,0.06571284,3037.0,3036.3,2.74211853]
[1731134569018,0.56594017,3036.9,3036.3,2.74211853]
[1731134569318,0.06571284,3036.8,3036.3,2.74211853]
[1731134570308,0.24367409,3036.8,3036.3,2.74211853]
[1731134571065,0.06571284,3036.8,3036.3,2.74211853]
[1731134571201,0.06571284,3036.9,3036.3,2.74211853]
[1731134573107,0.56597242,3036.8,3036.3,2.74211853]
[1731134573449,0.06571284,3036.7,3036.3,2.74211853]
[1731134573740,0.06571284,3036.7,3036.0,2.74211853]
[1731134573946,0.06571284,3036.7,3036.4,0.04132276]
[1731134574117,0.06571284,3036.7,3036.0,2.74211853]
[1731134574445,0.06571284,3036.7,3036.5,0.04131204]
[1731134574609,0.06571284,3036.7,3036.0,2.74211853]
[1731134574810,0.24367409,3036.7,3036.6,0.04129607]
[1731134575010,0.80985346,3036.7,3036.1,0.04134966]
[1731134575234,0.24367409,3036.7,3036.6,0.03991953]
[1731134575429,0.80962091,3036.7,3036.0,2.74211853]
[1731134575747,0.24367409,3036.7,3036.0,2.74211853]
[1731134575970,0.24367409,3036.7,3036.1,0.03998839]
[1731134576510,0.56648075,3036.6,3036.1,0.03998839]
[1731134576809,0.06571284,3036.5,3036.1,0.03998839]
[1731134577625,0.06571284,3036.6,3036.1,0.03998839]
[1731134578515,0.56689165,3036.5,3036.1,0.03998839]
[1731134578854,0.06571284,3036.4,3036.1,0.03998839]
[1731134579745,0.06571284,3036.5,3036.1,0.03998839]
[1731134580651,0.56747863,3036.4,3036.1,0.03998839]
[1731134580810,0.06571284,3036.3,3036.1,0.03998839]
[1731134581755,0.06571284,3036.4,3036.1,0.03998839]
[1731134582844,0.68558804,3036.2,3035.6,3.53851853]
[1731134583047,2.17047946,3036.1,3035.6,3.53851853]
[1731134583355,0.56780412,3036.0,3035.6,3.53851853]
[1731134583510,0.06571284,3035.9,3035.6,0.7964]
[1731134583717,0.06571284,3036.1,3035.9,2.74211853]
[1731134584109,0.06571284,3036.2,3035.9,2.74211853]
[1731134584310,0.06571284,3036.2,3035.9,3.01633038]
[1731134586866,0.06571284,3036.2,3035.3,3.7744]
[1731134587070,0.06571284,3036.2,3035.7,2.74211853]
[1731134587765,0.06571284,3036.9,3035.7,2.74211853]
[1731134587965,0.30638369,3036.8,3036.0,2.74211853]
[1731134588170,0.80050259,3037.0,3036.0,2.74211853]
[1731134588531,0.79050259,3037.0,3036.0,2.74211853]
[1731134588731,0.01,3037.1,3036.0,2.74211853]
[1731134589046,0.01,3036.9,3035.7,2.74211853]
[1731134589876,0.02,3037.1,3035.7,2.74211853]
[1731134590034,0.01,3037.1,3035.7,2.74211853]
[1731134590778,0.35363463,3037.6,3036.7,2.74211853]
[1731134592072,0.35363463,3037.6,3036.7,3.09914038]
[1731134592276,0.01,3037.3,3036.1,0.06586588]
[1731134592573,0.01,3037.2,3035.8,0.8281]
[1731134592783,0.01,3037.1,3035.9,0.0374996]
[1731134593673,0.01,3037.4,3036.1,2.74211853]
[1731134593879,0.02,3037.2,3036.1,2.74211853]
[1731134594106,0.01,3037.2,3036.2,0.0365841]
[1731134594375,0.02,3037.2,3036.2,0.0365841]
[1731134594581,0.02,3037.2,3036.0,2.74211853]
[1731134594876,0.02,3037.2,3036.1,0.03659443]
[1731134595740,0.01,3037.2,3036.1,0.03659443]
[1731134595948,0.57,3037.5,3036.1,0.03659443]
[1731134596274,0.01,3037.2,3036.1,0.03659443]
[1731134596679,0.01,3037.3,3036.1,0.03659443]
[1731134596881,0.01,3037.3,3036.1,0.35016791]
[1731134598065,0.01,3037.3,3036.2,0.8281]
[1731134598386,0.34363463,3037.6,3036.8,0.8281]
[1731134598579,3.40508826,3037.9,3036.9,0.03601511]
[1731134598746,0.68608981,3037.1,3036.9,0.03601511]
[1731134598951,0.56731051,3037.0,3036.8,0.8281]
[1731134599185,0.68608981,3037.1,3036.8,1.18512185]
[1731134599487,1.02913472,3037.3,3036.8,1.18512185]
[1731134599488,0.68608981,3037.2,3036.9,0.03601777]
[1731134599663,1.02913472,3037.3,3036.9,0.03601777]
[1731134599664,2.10401557,3037.1,3036.9,0.03601777]
[1731134599984,0.56718117,3037.0,3036.8,0.8281]
[1731134600200,0.68608981,3037.2,3036.8,0.8281]
[1731134600413,0.56717855,3037.1,3036.8,0.8281]
[1731134600702,0.68608981,3037.2,3036.8,0.8281]
[1731134600874,0.56710553,3037.1,3036.8,0.8281]
[1731134601201,0.68608981,3037.6,3037.1,0.8281]
[1731134601421,0.56687045,3037.5,3037.1,0.8281]
[1731134601573,0.56684229,3037.4,3037.1,0.8281]
[1731134601772,0.68608981,3037.5,3037.1,0.8281]
[1731134602090,0.56686481,3037.4,3037.1,0.8281]
[1731134602274,0.68608981,3037.6,3037.1,1.18512185]
[1731134602475,0.56696953,3037.5,3037.1,0.8281]
[1731134602770,0.68608981,3037.6,3037.1,0.8281]
[1731134603002,3.0,3038.8,3037.1,0.8281]
[1731134603206,5.77459434,3038.5,3037.1,0.8281]
[1731134603409,0.55,3038.3,3037.1,0.8281]
[1731134603700,0.55,3038.1,3037.1,0.8281]
[1731134603901,1.98457631,3038.0,3037.1,0.8281]
[1731134604212,1.98457631,3037.9,3037.1,0.8281]
[1731134604502,0.8505327,3037.8,3037.1,0.8281]
[1731134604803,0.8505327,3037.7,3037.1,0.8281]
[1731134605004,0.55,3038.4,3037.1,1.18512185]
[1731134605309,0.55,3038.2,3037.1,1.18512185]
[1731134605601,0.24001803,3038.5,3037.1,1.18512185]
[1731134605602,1.98371253,3038.1,3037.1,1.18512185]
[1731134605766,0.85016251,3038.0,3037.1,1.18512185]
[1731134605971,3.0,3038.8,3037.1,1.18512185]
[1731134605972,0.85016251,3037.9,3037.1,1.18512185]
[1731134606303,0.55,3038.7,3037.3,2.74211853]
[1731134606468,3.55,3038.5,3037.3,2.74211853]
[1731134606673,1.98302331,3038.4,3037.3,2.74211853]
[1731134606975,2.53632564,3038.3,3037.3,3.13484257]
[1731134607174,5.17766943,3039.2,3037.3,3.13484257]
[1731134607175,2.83521292,3039.4,3038.3,0.7814]
[1731134607373,3.97400735,3040.4,3038.3,0.7814]
[1731134607374,1.315904,3041.3,3039.8,0.01]
[1731134607575,0.1509287,3041.9,3040.6,2.74211853]
[1731134607576,1.14927169,3041.5,3040.6,2.74211853]
[1731134607790,1.14927169,3041.5,3040.4,0.7814]
[1731134607995,1.14927169,3041.5,3040.0,0.7919]
[1731134607996,0.8059,3041.5,3040.0,0.7919]
[1731134608298,0.8059,3041.5,3040.2,2.74211853]
[1731134608695,0.8059,3041.5,3040.0,0.7919]
[1731134608895,0.8059,3041.5,3040.0,3.7919]
[1731134609421,0.8059,3041.5,3040.3,2.74211853]
[1731134610421,0.8059,3041.5,3040.0,3.8019]
[1731134610586,0.8059,3041.5,3040.1,2.74211853]
[1731134611617,0.8059,3041.5,3040.2,0.03485753]
[1731134612302,0.8059,3041.5,3040.5,2.74211853]
[1731134612501,0.8059,3041.5,3040.6,0.03481476]
[1731134613120,0.8059,3041.5,3040.9,2.74211853]
[1731134613438,0.8059,3041.5,3041.0,0.03477201]
[1731134613640,0.1509287,3041.9,3041.0,0.03477201]
[1731134613641,0.7859,3041.8,3041.0,0.03477201]
[1731134614536,0.55,3041.7,3041.0,0.03477201]
[1731134615044,0.55,3041.7,3041.1,0.03475157]
[1731134615399,0.55,3041.7,3040.1,5.74211853]
[1731134615601,0.55,3041.5,3040.2,0.03438902]
[1731134615796,0.55,3041.5,3040.2,0.04438902]
[1731134616030,0.55,3041.5,3040.2,0.03438902]
[1731134616230,0.55,3041.5,3040.5,2.74211853]
[1731134616612,0.55,3041.3,3040.6,0.03434626]
[1731134616939,0.55,3041.3,3040.1,3.0]
[1731134617244,0.55,3041.3,3040.2,0.03377703]
[1731134618045,0.7859,3041.0,3039.5,0.01]
[1731134618345,0.55,3040.9,3039.5,0.01]
[1731134618507,0.55,3040.9,3039.7,0.03269477]
[1731134618912,0.55,3040.7,3039.7,0.03269477]
[1731134619132,0.55,3040.5,3039.2,2.74211853]
[1731134619334,0.55,3040.5,3039.2,3.36320133]
[1731134619640,0.55,3040.5,3039.3,0.03272694]
[1731134620055,0.55,3040.5,3039.2,3.36320133]
[1731134620056,0.55,3040.5,3039.2,2.89892827]
[1731134620261,0.55,3040.5,3039.4,0.03168889]
[1731134620431,0.55,3040.5,3039.3,0.03169959]
[1731134620632,0.55,3040.5,3039.5,0.03167819]
[1731134620835,0.55,3040.5,3039.4,0.03168889]
[1731134621034,0.55,3040.5,3039.6,0.03166808]
[1731134621256,0.55,3040.5,3039.5,0.03167878]
[1731134621462,0.55,3040.5,3039.7,0.03165739]
[1731134621667,0.55,3040.5,3039.6,0.03166808]
[1731134621852,0.55,3040.5,3039.8,0.03164669]
[1731134622055,0.55,3040.5,3039.7,0.03165739]
[1731134622277,0.55,3040.5,3039.9,0.031636]
[1731134622436,0.55,3040.5,3039.8,0.03164669]
[1731134622637,0.55,3040.5,3039.2,3.2680111]
[1731134622851,0.55,3040.5,3039.9,0.031636]
[1731134623035,0.55,3040.5,3039.2,3.2680111]
[1731134623566,0.7859,3040.6,3039.6,3.36320133]
[1731134623736,0.7859,3040.6,3039.7,0.03165739]
[1731134624238,0.7859,3040.6,3040.0,3.36320133]
[1731134624682,0.7859,3040.6,3040.1,0.03161461]
[1731134626238,0.55,3040.5,3039.6,3.36320133]
[1731134626479,0.55,3040.5,3040.2,0.03160333]
[1731134626705,0.55,3040.5,3039.6,3.36320133]
[1731134626980,0.55,3040.5,3039.3,0.7903]
[1731134627181,0.7859,3040.6,3039.4,0.03168948]
[1731134627407,0.7859,3040.6,3039.6,3.01]
[1731134627605,0.7859,3040.6,3039.6,3.0]
[1731134627905,0.7859,3040.6,3039.7,0.03180747]
[1731134628284,0.7859,3040.6,3039.5,3.36320133]
[1731134628617,0.55,3040.5,3039.6,0.03181817]
[1731134629497,0.55,3040.5,3039.3,4.14350133]
[1731134629773,0.55,3040.5,3039.4,0.41535013]
[1731134629970,0.55,3040.5,3039.5,0.03182886]
[1731134630201,0.55,3040.5,3039.7,3.36320133]
[1731134630420,0.7921,3040.8,3039.8,0.79589678]
[1731134631543,0.7921,3040.8,3039.9,0.41590981]
[1731134631732,0.7921,3040.8,3039.8,0.79589678]
[1731134631929,0.7921,3040.8,3040.0,0.03177539]
[1731134632090,0.7921,3040.8,3039.9,0.03178608]
[1731134632287,0.7921,3040.8,3040.1,0.0317647]
[1731134632492,0.7921,3040.8,3040.0,0.03177539]
[1731134632806,0.7921,3040.8,3040.1,0.0317647]
[1731134633139,0.7921,3040.8,3039.8,0.7641]
[1731134633304,0.7921,3040.8,3040.2,0.03175016]
[1731134633510,0.7921,3040.8,3039.8,1.17683013]
[1731134633722,0.7914697,3040.8,3040.3,0.03173947]
[1731134633920,0.7914697,3040.8,3039.8,1.17683013]
[1731134634092,0.7914697,3040.8,3040.4,0.03172878]
[1731134634298,0.7914697,3040.8,3039.8,1.17683013]
[1731134634533,0.7914697,3040.8,3040.5,0.03171809]
[1731134634699,0.7914697,3040.8,3039.7,3.36320133]
[1731134634895,0.34332105,3041.3,3040.6,0.0317074]
[1731134635112,0.34332105,3041.3,3040.3,0.7641]
[1731134635324,0.34240314,3041.6,3040.3,0.7641]
[1731134635526,0.34325742,3041.8,3040.4,0.031777]
[1731134635939,0.34325742,3041.8,3040.3,0.7641]
[1731134636111,0.34325742,3041.8,3040.4,0.03173974]
[1731134636513,0.55,3041.7,3040.3,0.7641]
[1731134636819,0.55,3041.5,3040.3,0.7641]
[1731134637334,0.55,3041.5,3040.4,0.03173814]
[1731134639250,0.34325742,3041.8,3040.4,0.03173814]
[1731134639451,0.7921,3041.6,3040.5,0.7641]
[1731134639854,0.7921,3041.6,3040.6,0.03012868]
[1731134640512,0.55,3041.5,3040.6,0.03012868]
[1731134641059,0.7921,3041.6,3040.7,0.03011799]
[1731134641418,0.7921,3041.6,3040.5,2.73044423]
[1731134641608,0.7921,3041.6,3040.6,0.3041731]
[1731134643423,0.55,3041.3,3040.6,0.03012868]
[1731134643632,0.55,3041.3,3040.2,0.7641]
[1731134643813,0.804,3041.4,3040.2,0.7641]
[1731134643814,0.804,3041.4,3040.5,2.73044423]
[1731134644014,0.804,3041.4,3040.6,0.03013193]
[1731134644213,0.3804,3041.3,3040.5,2.73044423]
[1731134644412,0.3804,3041.3,3040.6,0.03013193]
[1731134644656,0.3804,3041.3,3040.2,0.7641]
[1731134645026,0.804,3041.8,3040.4,0.01]
[1731134645666,0.804,3041.8,3040.2,0.7741]
[1731134645878,0.83125519,3041.9,3040.2,0.7741]
[1731134646031,0.9549287,3041.9,3040.7,0.7751]
[1731134646226,0.9549287,3041.9,3040.8,0.35055442]
[1731134646454,0.9549287,3041.9,3040.9,0.03006605]
[1731134646773,0.9549287,3041.9,3040.7,0.7751]
[1731134647157,0.55,3041.8,3040.8,0.03007999]
[1731134648127,0.55,3041.4,3040.8,0.03007999]
[1731134648343,0.55,3041.4,3040.2,0.7751]
[1731134648727,0.55,3041.3,3040.2,0.7751]
[1731134649141,0.55,3041.3,3040.3,0.03006974]
[1731134649844,0.68032649,3041.5,3040.4,0.7751]
[1731134650041,3.804,3041.4,3040.4,0.7751]
[1731134650370,1.48432649,3041.4,3040.4,0.7751]
[1731134651071,0.55,3041.3,3040.4,0.7751]
[1731134651228,2.09614137,3041.3,3040.4,0.7751]
[1731134651428,5.48831678,3041.3,3040.5,0.02971205]
[1731134651628,5.48831678,3041.3,3040.4,0.7751]
[1731134651935,4.92199083,3041.3,3040.4,0.7751]
[1731134652141,3.55,3041.2,3040.4,0.7751]
[1731134652670,0.55,3041.2,3040.4,0.7751]
[1731134652886,0.46225019,3041.1,3040.4,0.7751]
[1731134653062,0.68032649,3040.9,3040.4,0.7751]
[1731134653685,0.68032649,3040.9,3040.0,0.7751]
[1731134653995,0.804,3040.8,3040.0,0.7751]
[1731134654191,0.68032649,3040.6,3040.1,0.0294521]
[1731134654493,1.12797216,3040.6,3040.0,0.7751]
[1731134655085,0.68032649,3040.4,3040.0,0.7751]
[1731134655300,0.56822475,3040.3,3040.0,0.7751]
[1731134655452,2.1009671,3040.2,3039.5,0.7751]
[1731134655653,0.56822475,3040.1,3039.5,0.7751]